Cogmind - Beta 13 @@@ ROGUE MODE // 2024.04.06 @ 18:46:37 Player: f_ Result: Destroyed by S-27 Virus with Autogun Performance ------------- Evolutions (5) 2500 Regions Visited (14) 2800 Robots Destroyed (78) 390 Value Destroyed (2684) 2684 Prototype IDs (30) 600 Alien Tech Used (0) 0 Bonus (2554) 2554 TOTAL SCORE: 11528 Bonus ------- High Alert Combat Kills 256 Follower Combat Kills 1414 Met Data Miner 300 Met Imprinter 300 Was Imprinted 300 Friendly Fire -16 Cogmind --------- Core Integrity 0/1000 Matter 300/300 Energy 160/160 System Corruption 9% Temperature Cool (0) Movement Flying (195) Ox2 Location -5/Upper Caves Parts ------- > --- POWER (1) -------- Light Fission Core > --- PROPULSION (4) --- Cesium-ion Thruster > --- UTILITY (10) ----- Advanced Weight Redist. System Advanced Signal Interpreter 0b10 Decoder Chip [Generic] Improved Melee Analysis Suite Improved Melee Analysis Suite Improved Melee Analysis Suite Improved Melee Analysis Suite Core Analyzer Improved Focal Shield > --- WEAPON (2) ------- Makeshift Hammer > --- INVENTORY (5) ---- Large Storage Unit Improved Utility Shielding Makeshift Light Armor Plating Improved Hacking Suite Improved Arc Projector Peak State ------------ > --- POWER ------------ Light Nuclear Core > --- PROPULSION ------- Improved Cesium-ion Thruster Field Propulsion Drive Field Propulsion Drive > --- UTILITY ---------- Advanced Signal Interpreter 0b10 Decoder Chip [Generic] 0b10 Decoder Chip [Skirmisher] Advanced Melee Analysis Suite Improved Target Analyzer Precision Matter Filter Improved Hacking Suite Makeshift System Shield Improved System Shield Improved Trap Extractor > --- WEAPON ----------- Improved Datajack Shock Maul > --- INVENTORY -------- Experimental Heat Sink Mini Grenade Launcher Power Sword GAL Module [Rating: 81] Favorites ----------- Power Light Ion Engine Engine Light Ion Engine Power Core Light Nuclear Core Reactor Light Antimatter Reactor Propulsion VTOL Module Leg Aluminum Leg Flight Unit VTOL Module Utility 0b10 Decoder Chip [Generic] Device Hacking Drone Bay Storage Small Storage Unit Processor 0b10 Decoder Chip [Generic] Hackware Improved Hacking Suite Protection Zionite Weapon Casing Weapon Mini Grenade Launcher Energy Gun Heavy EM Pulse Gun Energy Cannon Heavy Plasma Cannon Ballistic Gun Light Assault Rifle Launcher Mini Grenade Launcher Special Weapon Molecular Deconstructor Impact Weapon Shock Maul Slashing Weapon Power Sword Special Melee Weapon Improved Datajack Build | -11 -10 -10 -9 -9 -7 -6 -6 -6 -6 -6 -5 -5 -5 -5 ------- Run | Yrd Mat Min Mat Min Zio Pro Fac Low Low Dat Pro Fac Upp Upp Slots Evolved 10 | . . . 2 . . . 6 . . . . 2 . . Power . | . . . . . . . . . . . . . . . Propulsion 2 | . . . . . . . 2 . . . . . . . Utility 8 | . . . 2 . . . 4 . . . . 2 . . Weapon . | . . . . . . . . . . . . . . . Parts Attached 144 | 6 1 7 18 . 4 4 37 7 8 . 13 35 3 1 Power 15 | 1 . 2 2 . . . 2 1 1 . 2 4 . . Engine 8 | 1 . 2 2 . . . 1 . . . . 2 . . Core 6 | . . . . . . . . 1 1 . 2 2 . . Reactor 1 | . . . . . . . 1 . . . . . . . Propulsion 30 | 2 . . 4 . . 2 9 . 4 . 1 7 1 . Treads . | . . . . . . . . . . . . . . . Leg 6 | 2 . . . . . . . . . . . 4 . . Wheel . | . . . . . . . . . . . . . . . Hover . | . . . . . . . . . . . . . . . Flight 24 | . . . 4 . . 2 9 . 4 . 1 3 1 . Utility 57 | 1 . . 5 . 4 . 16 5 2 . 5 18 1 . Device 31 | . . . 2 . 2 . 7 4 . . 4 11 1 . Storage 3 | 1 . . 1 . . . . . 1 . . . . . Processor 14 | . . . 1 . 2 . 4 . . . 1 6 . . Hackware 6 | . . . 1 . . . 3 1 . . . 1 . . Protection 3 | . . . . . . . 2 . 1 . . . . . Artifact . | . . . . . . . . . . . . . . . Weapon 42 | 2 1 5 7 . . 2 10 1 1 . 5 6 1 1 Energy Gun 12 | . . 2 4 . . 1 3 . . . . 1 1 . Energy Cannon 1 | . . . . . . . 1 . . . . . . . Ballistic Gun 6 | 2 . 1 1 . . . 2 . . . . . . . Ballistic Cannon . | . . . . . . . . . . . . . . . Launcher 8 | . . 2 2 . . . 1 1 . . 1 1 . . Special Weapon 2 | . . . . . . 1 . . . . 1 . . . Impact Weapon 3 | . . . . . . . 1 . . . . 1 . 1 Slashing Weapon 6 | . . . . . . . 1 . 1 . 3 1 . . Piercing Weapon . | . . . . . . . . . . . . . . . Special Melee Weapon 4 | . 1 . . . . . 1 . . . . 2 . . Unidentified Prototypes 12 | . . . . . 2 . 6 . 2 . 1 1 . . Corrupted Parts 1 | . . . . . . . . . . . 1 . . . System Corruption 1 | . . . . . . . . . . . 1 . . . Parts Lost 57 | . . 3 5 . . 6 4 6 4 . 5 21 1 2 Power 10 | . . 1 1 . . 1 . 1 1 . 1 4 . . Propulsion 19 | . . 1 1 . . 3 2 3 1 . 3 4 . 1 Utility 16 | . . . . . . . 1 1 2 . 1 9 1 1 Weapon 12 | . . 1 3 . . 2 1 1 . . . 4 . . Highest Loss Streak 10 | . . 2 5 . . 4 2 3 2 . 2 10 1 2 To Critical Strikes 1 | . . . . . . . . . . . . 1 . . Average Slot Usage (%) 84 | . 85 79 55 88 91 94 86 88 81 93 86 81 74 81 Engine 5 | . 14 14 9 11 11 9 5 3 . . . . . . Core 2 | . . . . . . . . 2 5 6 3 3 5 5 Leg 3 | . 28 22 3 . . . . . . . . 6 . . Flight 14 | . . . 13 22 22 20 22 19 12 26 21 6 6 10 Device 8 | . . . 3 11 13 11 19 8 4 . 3 6 10 11 Storage 1 | . 14 14 4 . . . . . . . . . . . Processor 21 | . . . 3 11 11 22 20 26 26 26 31 39 47 46 Hackware 9 | . . . 3 11 11 11 5 16 16 13 13 7 . . Energy Gun 4 | . . 15 12 11 11 8 2 . . . . . 2 2 Launcher 5 | . . 9 1 11 11 11 4 2 6 6 2 . . . Slashing Weapon 1 | . . . . . . . 1 6 3 6 6 . . . Special Melee Weapon 1 | . 7 2 . . . . . . . . . 3 . . Naked Turns . | . . . . . . . . . . . . . . . Heaviest Build 19 | 11 11 13 18 8 8 8 19 15 12 10 16 16 14 14 Greatest Support 76 | 20 20 20 10 8 8 8 20 20 22 22 22 76 21 21 Greatest Overweight (x) 3 | . . 1 3 . . . 1 3 1 . 1 2 . 2 Average Overweight (x) . | . . . . . . . . . . . . . . . Largest Inventory Capacity 10 | 8 8 8 10 5 5 5 5 5 5 5 5 5 5 5 Average Capacity 5 | 6 8 8 6 5 5 5 5 5 5 5 5 5 5 5 Most Carried 7 | 4 5 7 6 5 5 5 5 5 5 4 5 5 5 5 Average Carried 4 | 1 4 5 4 5 4 4 4 4 4 4 4 3 4 4 Final Capacity 8 | 8 8 8 5 5 5 5 5 5 5 5 5 5 5 5 Final Carried 5 | 2 5 5 5 5 5 4 5 4 4 4 5 5 4 5 Class Distribution -------------------- 34% | Mutant 24% | Sprinter 23% | Hacker-Mutant 12% | Hacker-Sprinter Dominant Class ---------------- Mutant | -10/Materials Mutant | -10/Mines Mutant | -9/Materials Sprinter | -9/Mines Sprinter | -7/Zion Mutant | -6/Proximity Caves Sprinter | -6/Factory Hacker-Mutant | -6/Lower Caves Hacker-Mutant | -6/Lower Caves Hacker-Sprinter | -6/Data Miner Hacker-Mutant | -5/Proximity Caves Mutant | -5/Factory Mutant | -5/Upper Caves Mutant | -5/Upper Caves Resources | -11 -10 -10 -9 -9 -7 -6 -6 -6 -6 -6 -5 -5 -5 -5 ----------- Run | Yrd Mat Min Mat Min Zio Pro Fac Low Low Dat Pro Fac Upp Upp Matter Collected 2189 | 145 . 179 76 . 128 188 545 65 160 . 245 418 . 40 Remotely . | . . . . . . . . . . . . . . . Salvage Created 2583 | . 25 200 146 . . 202 510 139 179 . 308 874 . . Parts 108 | . 1 13 18 . . 14 14 2 7 . 23 16 . . Haulers Intercepted 3 | . . . 1 . . . 1 . . . . 1 . . Recyclers Shooed . | . . . . . . . . . . . . . . . Parts Field Recycled . | . . . . . . . . . . . . . . . Retrieved Matter . | . . . . . . . . . . . . . . . Parts Self-Destructed 45 | . . . . . . 8 . 3 10 . 24 . . . Prevented 1 | . . . . . . 1 . . . . . . . . Kills | -11 -10 -10 -9 -9 -7 -6 -6 -6 -6 -6 -5 -5 -5 -5 ------- Run | Yrd Mat Min Mat Min Zio Pro Fac Low Low Dat Pro Fac Upp Upp Combat Hostiles Destroyed 64 | . . 8 6 . . 8 6 5 4 . 11 16 . . Melee 14 | . . . . . . . 4 2 3 . 2 3 . . Guns 6 | . . . 4 . . 1 . . . . . 1 . . AOE 35 | . . 8 2 . . 7 1 3 1 . 9 4 . . Classes Destroyed 19 | . 1 3 3 . . 4 1 1 . . 2 4 . . Worker 1 | . . . 1 . . . . . . . . . . . Hauler 3 | . . . 1 . . . 1 . . . . 1 . . Recycler 1 | . . 1 . . . . . . . . . . . . Minesweeper 1 | . . . . . . . . . . . 1 . . . Mechanic 1 | . . . . . . . . . . . . 1 . . Operator 2 | . . . 1 . . . 1 . . . . . . . Drone 2 | . . . . . . 2 . . . . . . . . Watcher 6 | . 1 . 1 . . . 2 . . . . 2 . . Swarmer 28 | . . 6 6 . . 2 2 3 1 . 8 . . . Saboteur 1 | . . . . . . . . . . . . 1 . . Grunt 17 | . . 2 . . . . 1 . 3 . 1 10 . . Brawler 1 | . . . . . . 1 . . . . . . . . Sentry 4 | . . . . . . . 3 . . . . 1 . . Demolisher 1 | . . . . . . . . . . . . 1 . . Specialist 1 | . . . . . . . . . . . 1 . . . Hunter 5 | . . . . . . 2 . 1 . . . 2 . . Programmer 2 | . . . . . . 1 . . . . 1 . . . Assembled 1 | . . . . . . . . . . . . 1 . . Mutant 1 | . . . . . . . . 1 . . . . . . Best Kill Streak 7 | . 1 3 5 . . 3 2 4 1 . 5 7 . . Combat Bots Only 5 | . . 3 3 . . 3 2 4 1 . 5 5 . . Max Kills in Single Turn 4 | . 1 2 4 . . 2 1 2 1 . 3 1 . . Gunslinging . | . . . . . . . . . . . . . . . Exploded 3 | . . 2 2 . . 2 1 2 1 . 3 1 . . Melee 1 | . . . . . . . 1 1 1 . 1 1 . . Uniques/NPCs Destroyed . | . . . . . . . . . . . . . . . Combat | -11 -10 -10 -9 -9 -7 -6 -6 -6 -6 -6 -5 -5 -5 -5 -------- Run | Yrd Mat Min Mat Min Zio Pro Fac Low Low Dat Pro Fac Upp Upp Hostile Shots Fired 518 | . 8 15 70 . . 66 70 33 21 . 41 163 14 17 Missed 217 | . 3 4 25 . . 35 35 10 7 . 13 73 7 5 Damage Taken 4953 | . 54 342 345 . . 387 375 440 241 . 503 2025 101 140 Core 1879 | . 22 104 132 . . 108 78 191 53 . 185 885 44 77 Absorbed by Shields . | . . . . . . . . . . . . . . . Redirected to Shielding 103 | . . . . . . . . . 85 . 18 . . . Ignored by Resistances 60 | . . . . . . . . . . . . . 8 52 Core Remaining (%) 57 | 100 . 49 . . . 40 . . . . 40 . . . Volleys Fired 142 | . 5 8 38 . 3 28 27 6 3 . 7 17 . . Largest 2 | . 2 2 2 . 1 1 1 1 1 . 1 1 . . Hottest 90 | . 40 80 80 . 45 45 90 30 30 . 30 65 . . Shots Fired 148 | . 7 11 39 . 3 28 27 6 3 . 7 17 . . Gun 86 | . 7 3 38 . 3 5 22 . . . . 8 . . Cannon 1 | . . . . . . . 1 . . . . . . . Launcher 61 | . . 8 1 . . 23 4 6 3 . 7 9 . . Special . | . . . . . . . . . . . . . . . Kinetic 14 | . 7 . 7 . . . . . . . . . . . Thermal 1 | . . . . . . . 1 . . . . . . . Explosive 61 | . . 8 1 . . 23 4 6 3 . 7 9 . . Electromagnetic 72 | . . 3 31 . 3 5 22 . . . . 8 . . Robot Hit Streak 8 | . 3 3 5 . 1 5 8 8 . . 2 3 . . Robot Miss Streak 5 | . 2 2 4 . 2 4 5 1 . . 1 2 . . Penetration Max . | . . . . . . . . . . . . . . . Secondary Targets . | . . . . . . . . . . . . . . . Shots Hit Robots 143 | . 4 5 16 . 1 10 29 10 13 . 15 40 . . Core Hits 112 | . 1 13 9 . 1 16 14 10 7 . 16 25 . . Critical Kills . | . . . . . . . . . . . . . . . Critical Parts Destroyed 12 | . . . . . . . 1 . . . . 11 . . Critical Strikes 20 | . . . 1 . . . 1 . 3 . 2 13 . . Corrupt 1 | . . . 1 . . . . . . . . . . . Smash 14 | . . . . . . . 1 . . . . 13 . . Sever 5 | . . . . . . . . . 3 . 2 . . . Melee Attacks 128 | . . . . . . . 30 9 15 . 20 54 . . Impact 42 | . . . . . . . 2 . . . . 40 . . Slashing 77 | . . . . . . . 25 9 15 . 20 8 . . Piercing . | . . . . . . . . . . . . . . . Sneak Attacks 10 | . . . . . . . 4 . . . 1 5 . . Combat Hostiles 1 | . . . . . . . . . . . . 1 . . Follow-up Attacks 2 | . . . . . . . . . . . . 2 . . Damage Inflicted 8654 | . 45 493 677 . 15 667 1274 810 720 . 1417 2536 . . Guns 505 | . 45 12 208 . 15 24 139 . . . . 62 . . Cannons 32 | . . . . . . . 32 . . . . . . . Explosions 4596 | . . 464 469 . . 643 460 534 163 . 793 1070 . . Melee 3504 | . . . . . . . 643 276 557 . 624 1404 . . Ramming 17 | . . 17 . . . . . . . . . . . . Kinetic 62 | . 45 . 17 . . . . . . . . . . . Thermal 70 | . . 38 . . . . 32 . . . . . . . Explosive 4558 | . . 426 469 . . 643 460 534 163 . 793 1070 . . Electromagnetic 443 | . . 12 191 . 15 24 139 . . . . 62 . . Impact 1311 | . . . . . . . 71 . . . . 1240 . . Slashing 2193 | . . . . . . . 572 276 557 . 624 164 . . Piercing . | . . . . . . . . . . . . . . . Highest Corruption 9 | . 1 1 . . . . . . . . 3 9 9 9 Average Corruption 3 | . 1 1 . . . . . . . . 2 3 9 9 Corruption Purged . | . . . . . . . . . . . . . . . Corruption Blocked . | . . . . . . . . . . . . . . . Effects 31 | . . 8 . . . . . . . . 6 13 1 3 Message Errors 8 | . . 1 . . . . . . . . . 5 1 1 Matter Fused 7 | . . 3 . . . . . . . . 2 2 . . Heat Flow Errors 5 | . . . . . . . . . . . 1 3 . 1 Energy Discharges 4 | . . 1 . . . . . . . . 2 1 . . Data Loss (minor) 3 | . . . . . . . . . . . 1 1 . 1 Data Loss (major) 1 | . . . . . . . . . . . . 1 . . Misfires 2 | . . 2 . . . . . . . . . . . . Alerts 1 | . . 1 . . . . . . . . . . . . Overload Shots . | . . . . . . . . . . . . . . . Overflow Damage 1092 | . . 36 19 . . 5 203 9 11 . 98 711 . . Projectiles . | . . . . . . . . . . . . . . . Explosions 71 | . . 36 19 . . 5 . . . . 11 . . . Melee 1021 | . . . . . . . 203 9 11 . 87 711 . . Knockbacks 11 | . . 1 . . . . . . . . . 10 . . Impact 10 | . . 1 . . . . . . . . . 9 . . Kinetic . | . . . . . . . . . . . . . . . Secondary 1 | . . . . . . . . . . . . 1 . . Self-Inflicted Damage 262 | . . 215 . . . 47 . . . . . . . . Shots 9 | . . 7 . . . 2 . . . . . . . . Rammed . | . . . . . . . . . . . . . . . Targets Rammed 5 | . . 5 . . . . . . . . . . . . Kicked 5 | . . 5 . . . . . . . . . . . . Crushed . | . . . . . . . . . . . . . . . Highest Temperature 253 | . . 30 9 . . 6 52 . . . 253 219 . 104 Average Temperature 48 | . . 14 6 . . 2 21 . . . 136 102 . 57 Received Heat Transfer 768 | . 30 69 . . . 62 96 . 33 . 45 424 9 . Siege Activations . | . . . . . . . . . . . . . . . Robots Corrupted 2 | . . . 1 . . . 1 . . . . . . . Combat Hostiles 1 | . . . . . . . 1 . . . . . . . Parts Fried 13 | . . . 1 . . . 1 . . . . 11 . . Impact Corruptions 21 | . . . . . . . 1 . . . . 20 . . Robots Melted . | . . . . . . . . . . . . . . . Combat Hostiles . | . . . . . . . . . . . . . . . Parts Melted . | . . . . . . . . . . . . . . . Heat Transferred 100 | . . 50 . . . . 50 . . . . . . . Parts Sabotaged . | . . . . . . . . . . . . . . . Parts Stolen . | . . . . . . . . . . . . . . . Parts Stripped . | . . . . . . . . . . . . . . . Power Chain Reactions 1 | . . 1 . . . . . . . . . . . . Alert | -11 -10 -10 -9 -9 -7 -6 -6 -6 -6 -6 -5 -5 -5 -5 ------- Run | Yrd Mat Min Mat Min Zio Pro Fac Low Low Dat Pro Fac Upp Upp Peak Influence 916 | . 67 235 235 91 . . 916 . . . . 729 . . Initial 314 | . . 25 15 91 . . 314 . . . . 126 . . Average 378 | . 37 112 112 91 . . 585 . . . . 523 . . Maximum Alert Level 3 | . . 1 1 . . . 3 . . . . 3 . . Low Security (%) 40 | 100 100 95 71 100 . . . . . . . 17 . . Level 1 10 | . . 4 28 . . . 21 . . . . 3 . . Level 2 35 | . . . . . . . 50 . . . . 60 . . Level 3 13 | . . . . . . . 27 . . . . 17 . . Level 4 . | . . . . . . . . . . . . . . . Level 5 . | . . . . . . . . . . . . . . . High Security . | . . . . . . . . . . . . . . . Max Security . | . . . . . . . . . . . . . . . Squads Dispatched 18 | . 1 . 3 . . . 6 . . . . 8 . . Investigation 7 | . 1 . 1 . . . 3 . . . . 2 . . Extermination 2 | . . . . . . . 1 . . . . 1 . . Reinforcement 4 | . . . 2 . . . 1 . . . . 1 . . Assault 4 | . . . . . . . . . . . . 4 . . Garrison 1 | . . . . . . . 1 . . . . . . . Intercept . | . . . . . . . . . . . . . . . Searches Triggered . | . . . . . . . . . . . . . . . Data Miner Redirects 1 | . . . . . . . . . . . . 1 . . Construction Impeded . | . . . . . . . . . . . . . . . Haulers Reinforced 1 | . . . . . . . . . . . . 1 . . Active Scanning Responses . | . . . . . . . . . . . . . . . Cargo Convoy Interrupts . | . . . . . . . . . . . . . . . Stealth | -11 -10 -10 -9 -9 -7 -6 -6 -6 -6 -6 -5 -5 -5 -5 --------- Run | Yrd Mat Min Mat Min Zio Pro Fac Low Low Dat Pro Fac Upp Upp Distress Signals 6 | . . . 2 . . . 1 . . . . 3 . . Communications Jammed . | . . . . . . . . . . . . . . . Distress Signals . | . . . . . . . . . . . . . . . Times Spotted 182 | . 5 8 13 . 1 10 27 7 12 . 15 69 8 7 Peak Tracking Total 18 | . 2 3 8 . 1 5 4 3 4 . 5 18 8 7 Tactical Retreats 7 | . . . . . . . 1 . 1 . . 4 1 . Traps | -11 -10 -10 -9 -9 -7 -6 -6 -6 -6 -6 -5 -5 -5 -5 ------- Run | Yrd Mat Min Mat Min Zio Pro Fac Low Low Dat Pro Fac Upp Upp Traps Triggered 2 | . . . . . . . 2 . . . . . . . Indirectly . | . . . . . . . . . . . . . . . Trap Hack Attempts 20 | . 8 . . . . . . . . . . 12 . . Triggered . | . . . . . . . . . . . . . . . Disarmed 1 | . . . . . . . . . . . . 1 . . Reprogrammed 1 | . 1 . . . . . . . . . . . . . Reused . | . . . . . . . . . . . . . . . Traps Extracted 11 | . . . . . . . . . . . 11 . . . Installed 15 | . . . . . . . . . . . 14 1 . . Triggered . | . . . . . . . . . . . . . . . Most Traps Carried 4 | . . . . . . . . . . . 4 3 . . Machines | -11 -10 -10 -9 -9 -7 -6 -6 -6 -6 -6 -5 -5 -5 -5 ---------- Run | Yrd Mat Min Mat Min Zio Pro Fac Low Low Dat Pro Fac Upp Upp Machines Disabled 6 | . . . 2 . . . 4 . . . . . . . Max in Single Turn 2 | . . . 2 . . . . . . . . . . . Machines Repaired . | . . . . . . . . . . . . . . . Machines Dismantled . | . . . . . . . . . . . . . . . Machines Sabotaged . | . . . . . . . . . . . . . . . Overloaded Fab Kills . | . . . . . . . . . . . . . . . Hacking | -11 -10 -10 -9 -9 -7 -6 -6 -6 -6 -6 -5 -5 -5 -5 --------- Run | Yrd Mat Min Mat Min Zio Pro Fac Low Low Dat Pro Fac Upp Upp Machines Accessed 13 | . 1 . 3 . . . 2 . . 4 . 2 1 . Terminals 5 | . 1 . 3 . . . . . . . . . 1 . Fabricators 2 | . . . . . . . . . . . . 2 . . Repair Stations . | . . . . . . . . . . . . . . . Recycling Units . | . . . . . . . . . . . . . . . Scanalyzers . | . . . . . . . . . . . . . . . Garrison Access 2 | . . . . . . . 2 . . . . . . . Total Hacks 54 | . 3 . 11 . . . 2 . . 30 . 5 3 . Successful 44 | . . . 6 . . . 1 . . 30 . 4 3 . Failed 10 | . 3 . 5 . . . 1 . . . . 1 . . Catastrophic 2 | . 1 . 1 . . . . . . . . . . . Database Lockouts . | . . . . . . . . . . . . . . . Manual 59 | . 2 . 10 . 3 . 25 . . 2 1 16 . . Terminals 17 | . 3 . 11 . . . . . . . . . 3 . Fabricators 5 | . . . . . . . . . . . . 5 . . Repair Stations . | . . . . . . . . . . . . . . . Recycling Units . | . . . . . . . . . . . . . . . Scanalyzers . | . . . . . . . . . . . . . . . Garrison Access 2 | . . . . . . . 2 . . . . . . . Terminal Hacks 37 | . . . 4 . . . . . . 30 . . 3 . Record 14 | . . . . . . . . . . 11 . . 3 . Part Schematic 10 | . . . . . . . . . . 10 . . . . Robot Schematic 7 | . . . 1 . . . . . . 6 . . . . Robot Analysis 2 | . . . 2 . . . . . . . . . . . Prototype ID Bank 3 | . . . . . . . . . . 3 . . . . Locate Traps 1 | . . . 1 . . . . . . . . . . . Fabricator Hacks 4 | . . . . . . . . . . . . 4 . . Load Schematic 2 | . . . . . . . . . . . . 2 . . Build 2 | . . . . . . . . . . . . 2 . . Repair Station Hacks . | . . . . . . . . . . . . . . . Recycling Unit Hacks . | . . . . . . . . . . . . . . . Scanalyzer . | . . . . . . . . . . . . . . . Garrison Access Hacks . | . . . . . . . . . . . . . . . Unauthorized Hacks 3 | . . . 2 . . . 1 . . . . . . . Terminals 2 | . . . 2 . . . . . . . . . . . Botnet 2 | . . . 2 . . . . . . . . . . . Fabricators . | . . . . . . . . . . . . . . . Repair Stations . | . . . . . . . . . . . . . . . Recycling Units . | . . . . . . . . . . . . . . . Scanalyzers . | . . . . . . . . . . . . . . . Garrison Access 1 | . . . . . . . 1 . . . . . . . Reprogram 1 | . . . . . . . 1 . . . . . . . Data Cores Recovered . | . . . . . . . . . . . . . . . Used . | . . . . . . . . . . . . . . . Hacking Detections 10 | . 1 . 3 . . . 2 . . . . 3 1 . Full Trace Events 5 | . 1 . 1 . . . . . . . . 2 1 . Feedback Events 1 | . 1 . . . . . . . . . . . . . Corruption 1 | . 1 . . . . . . . . . . . . . Feedback Blocked . | . . . . . . . . . . . . . . . Robot Schematics Acquired 7 | . . . 1 . . . . . . 6 . . . . Robots Built . | . . . . . . . . . . . . . . . Authchips . | . . . . . . . . . . . . . . . Time . | . . . . . . . . . . . . . . . Total Robot Build Rating . | . . . . . . . . . . . . . . . Part Schematics Acquired 19 | . . . . . . . 9 . . 10 . . . . Parts Built 2 | . . . . . . . . . . . . 2 . . Authchips . | . . . . . . . . . . . . . . . Time 160 | . . . . . . . . . . . . 160 . . Total Part Build Rating 11 | . . . . . . . . . . . . 11 . . Parts Repaired . | . . . . . . . . . . . . . . . Time . | . . . . . . . . . . . . . . . Parts Recycled . | . . . . . . . . . . . . . . . Recycled Matter . | . . . . . . . . . . . . . . . Retrieved Matter . | . . . . . . . . . . . . . . . Retrieved Components . | . . . . . . . . . . . . . . . Parts Scanalyzed . | . . . . . . . . . . . . . . . Part Schematics Acquired . | . . . . . . . . . . . . . . . Parts Damaged . | . . . . . . . . . . . . . . . Bothacking | -11 -10 -10 -9 -9 -7 -6 -6 -6 -6 -6 -5 -5 -5 -5 ------------ Run | Yrd Mat Min Mat Min Zio Pro Fac Low Low Dat Pro Fac Upp Upp Used RIF Installer . | . . . . . . . . . . . . . . . Robots Hacked 4 | . . . . . . . 2 . . . . 2 . . Non-combat 4 | . . . . . . . 2 . . . . 2 . . Combat . | . . . . . . . . . . . . . . . Robot Hacks Applied 6 | . . . . . . . 3 . . . . 3 . . parse_system 1 | . . . . . . . 1 . . . . . . . no_distress 2 | . . . . . . . 1 . . . . 1 . . find_fabricator 1 | . . . . . . . . . . . . 1 . . find_dsf 1 | . . . . . . . . . . . . 1 . . find_station 1 | . . . . . . . 1 . . . . . . . Relay Couplers Released . | . . . . . . . . . . . . . . . Fabnet Peak Effective % . | . . . . . . . . . . . . . . . Robots Rewired 4 | . . . . . . . . 4 . . . . . . Allies Hacked 4 | . . . . . . 1 . . . . . 3 . . Hacks Repelled . | . . . . . . . . . . . . . . . Allies | -11 -10 -10 -9 -9 -7 -6 -6 -6 -6 -6 -5 -5 -5 -5 -------- Run | Yrd Mat Min Mat Min Zio Pro Fac Low Low Dat Pro Fac Upp Upp Total Allies 22 | . . . . 3 4 . 5 4 . . 1 5 . . Largest Group 7 | . . . . 3 4 4 5 5 5 4 5 7 . . Highest-Rated Group 376 | . . . . 40 150 150 285 177 177 113 206 376 . . Highest-Rated Ally 96 | . . . . 16 39 39 70 64 64 31 96 96 . . Zionite Dispatches 4 | . . . . . . . 2 . . . . 2 . . Heavy 1 | . . . . . . . . . . . . 1 . . Light 1 | . . . . . . . 1 . . . . . . . Fire 1 | . . . . . . . . . . . . 1 . . Demo 1 | . . . . . . . 1 . . . . . . . Total Orders 22 | . . . . . 3 . 9 5 . . 5 . . . ROAM 1 | . . . . . 1 . . . . . . . . . FOLLOW 1 | . . . . . . . 1 . . . . . . . EXPLORE 10 | . . . . . 1 . 4 2 . . 3 . . . RETURN 10 | . . . . . 1 . 4 3 . . 2 . . . Ally Attacks 271 | . . . . . . 41 90 14 25 . 28 73 . . Total Damage 5689 | . . . . . . 712 1786 343 420 . 549 1879 . . Kills 48 | . . . . . . 2 16 2 6 . 5 17 . . Allies Corrupted 1 | . . . . . . . . . . . . 1 . . Allies Melted . | . . . . . . . . . . . . . . . Intel | -11 -10 -10 -9 -9 -7 -6 -6 -6 -6 -6 -5 -5 -5 -5 ------- Run | Yrd Mat Min Mat Min Zio Pro Fac Low Low Dat Pro Fac Upp Upp Robot Analysis Total 2 | . . . 2 . . . . . . . . . . . Derelict Logs Recovered 9 | . . 1 . 2 . 3 . 1 1 . 1 . . . Drone Launches 11 | . . . . . 1 . 4 3 . . 3 . . . Drone Recoveries 11 | . . . . . 1 . 4 3 . . 3 . . . Decoded 0b10 Intel 83 | . . . . . . . 41 . . . . 42 . . Traps 6 | . . . . . . . 4 . . . . 2 . . Emergency Access 4 | . . . . . . . 4 . . . . . . . Items 29 | . . . . . . . 12 . . . . 17 . . Machines 5 | . . . . . . . 2 . . . . 3 . . Garrisons 3 | . . . . . . . 3 . . . . . . . Patrols 10 | . . . . . . . 6 . . . . 4 . . Investigations 1 | . . . . . . . . . . . . 1 . . Reinforcements 2 | . . . . . . . 1 . . . . 1 . . Guards 23 | . . . . . . . 9 . . . . 14 . . Zionite Intel Received 7 | . . . . . . . 4 . . . . 3 . . Branch Access 2 | . . . . . . . 1 . . . . 1 . . Guard Positions 2 | . . . . . . . 1 . . . . 1 . . Prototype Stockpiles 1 | . . . . . . . 1 . . . . . . . Prototype Schematics 1 | . . . . . . . 1 . . . . . . . Unaware Analyses 1 | . . . . . . . . . . . . 1 . . Exploration | -11 -10 -10 -9 -9 -7 -6 -6 -6 -6 -6 -5 -5 -5 -5 ------------- Run | Yrd Mat Min Mat Min Zio Pro Fac Low Low Dat Pro Fac Upp Upp Turns Passed 6619 | 63 179 609 240 33 1062 463 802 404 712 278 507 1057 91 119 Spaces Moved 9992 | 47 126 385 265 96 2031 879 1827 565 1185 151 683 1228 246 278 Core 114 | 10 . . 2 . . . 5 5 . . . 92 . . Treads . | . . . . . . . . . . . . . . . Legs 840 | 37 126 385 21 . . . . . . . . 271 . . Wheels . | . . . . . . . . . . . . . . . Hover . | . . . . . . . . . . . . . . . Flight 9038 | . . . 242 96 2031 879 1822 560 1185 151 683 865 246 278 Fastest Speed 27 | 50 120 120 32 32 32 32 27 27 31 31 31 35 35 37 Average Speed 43 | 105 120 142 46 32 32 33 29 30 50 31 34 59 35 41 Slowest Speed 200 | 120 120 190 200 32 32 40 106 200 100 31 100 150 37 195 Overloaded Moves . | . . . . . . . . . . . . . . . Propulsion Burnouts . | . . . . . . . . . . . . . . . Robots Hopped 35 | . . . 3 2 . . 19 1 1 . 1 7 1 . Cave-ins Triggered . | . . . . . . . . . . . . . . . Exploration Rate (%) 53 | 4 22 81 29 23 91 92 40 70 94 74 68 16 51 40 Regions Visited 14 Branch Regions 10 Pre-discovered Areas 8 | . . 2 . . 1 1 . . 1 1 1 . 1 . Known Exits Taken 7 | . . . . . . . 1 1 1 1 1 1 1 . Unknown Exits Taken 7 | 1 1 1 1 1 1 1 . . . . . . . . Scrap Searched 24 | . . 1 . . 2 2 . 3 8 . 3 . 1 4 Spaces Dug 48 | . . . . . . 32 7 1 . . 1 7 . . Terrain Destroyed 284 | . . 65 13 . . 98 15 32 10 . 28 23 . . Melee 16 | . . . . . . . 7 1 . . 1 7 . . Projectile . | . . . . . . . . . . . . . . . AOE 268 | . . 65 13 . . 98 8 31 10 . 27 16 . . Terrain Rammed . | . . . . . . . . . . . . . . . Walls Destroyed . | . . . . . . . . . . . . . . . Machines Disabled . | . . . . . . . . . . . . . . . Actions | -11 -10 -10 -9 -9 -7 -6 -6 -6 -6 -6 -5 -5 -5 -5 --------- Run | Yrd Mat Min Mat Min Zio Pro Fac Low Low Dat Pro Fac Upp Upp Total 11839 | 60 147 433 335 95 2440 1015 2006 780 1269 381 914 1435 247 282 Wait 1312 | . 5 28 7 2 393 100 71 181 54 231 168 72 . . Move 9911 | 46 125 384 259 92 2030 878 1789 562 1182 150 680 1213 243 278 Hop 32 | . . . 2 1 . . 18 1 1 . 1 7 1 . Pick Up 41 | 8 3 1 4 . 3 1 8 1 2 . 2 7 . 1 Fast Attach 87 | . . . 11 . 4 2 27 1 7 . 8 24 2 1 Attach 41 | 6 . 2 2 . . 2 6 6 1 . 5 10 1 . Detach 22 | . . . . . 1 . 6 4 1 . 4 5 . 1 Swap 16 | . 1 5 5 . . . 4 . . . . 1 . . Drop 54 | . . . 7 . 6 1 20 . 3 . 5 11 . 1 Fire 142 | . 5 8 38 . 3 28 27 6 3 . 7 17 . . Melee 126 | . . . . . . . 30 9 15 . 20 52 . . Ram . | . . . . . . . . . . . . . . . Kick 5 | . . 5 . . . . . . . . . . . . Crush . | . . . . . . . . . . . . . . . Escape Stasis . | . . . . . . . . . . . . . . . Rewire 15 | . . . . . . 3 . 9 . . . 3 . . Trap 35 | . 8 . . . . . . . . . 14 13 . . Miscellaneous . | . . . . . . . . . . . . . . . Route ------- -11/Scrapyard -10/Materials -10/Mines (discovered 2 exits: *Mat x2) -9/Materials -9/Mines -7/Zion -6/Proximity Caves -6/Factory (discovered 5 exits: *Fac / *Low x2 / *Ext x2) -6/Lower Caves -6/Lower Caves (discovered 2 exits: *Fac / *Dat) -6/Data Miner -5/Proximity Caves -5/Factory (discovered 2 exits: *Upp x2) -5/Upper Caves -5/Upper Caves (discovered 1 exit: *Fac) History --------- Turn | Location | Event 6 | -11/Scrapyard | Discovered new exit (range 15) 64 | -11/Scrapyard | Entered Materials 113 | -10/Materials | Discovered new exit (range 16) 243 | -10/Materials | Entered Mines 280 | -10/Mines | Met a Derelict bent on vengeance 309 | -10/Mines | Build established: Mutant 323 | -10/Mines | Discovered new exit (range 5) 326 | -10/Mines | Learned location of Storage (-9) 507 | -10/Mines | Found a hidden stash of uninstalled traps 615 | -10/Mines | Core integrity fell below 50% 740 | -10/Mines | Discovered new exit (range 14) 852 | -10/Mines | Entered Materials 852 | -9/Materials | Evolved 2 slots: Utility x2 959 | -9/Materials | Lost 5 parts (1p1n3w) 1080 | -9/Materials | Discovered new exit (range 7) 1092 | -9/Materials | Entered Mines 1095 | -9/Mines | Learned Materials terminal intel 1107 | -9/Mines | Assisted by bots powering up and referring to "LRC-V3" 1108 | -9/Mines | Learned Materials trap positions 1122 | -9/Mines | A Derelict revealed a hidden shortcut to a safe place 1125 | -9/Mines | Entered Zion 1139 | -7/Zion | Discovered new exit (range 16) 1214 | -7/Zion | Received a visual enhancement algorithm 1239 | -7/Zion | Given the Hacking Drone Bay 1285 | -7/Zion | Found Prototype Device 1285 | -7/Zion | Identified Mobile Refinery Mk. CCLXVII 1310 | -7/Zion | Build established: Sprinter 1623 | -7/Zion | Found GAL Module 1636 | -7/Zion | Found Prototype Device 1636 | -7/Zion | Identified Hacking Drone Bay 1908 | -7/Zion | Imprinted 1910 | -7/Zion | Declared Zion's savior 2187 | -7/Zion | Entered Proximity Caves 2187 | -6/Proximity Caves | Accompanied by 4 allies 2196 | -6/Proximity Caves | Learned 12 Factory zone layouts 2285 | -6/Proximity Caves | Ambushed by research squad 2285 | -6/Proximity Caves | P-60 Hacker assimilated allied XQ-3DA(M) 2326 | -6/Proximity Caves | Spotter reported a threat 2424 | -6/Proximity Caves | Spotter reported a threat 2439 | -6/Proximity Caves | Core integrity fell below 50% 2443 | -6/Proximity Caves | Learned 4 Factory zone layouts 2574 | -6/Proximity Caves | Attracted the attention of an 0b10 checkpoint 2614 | -6/Proximity Caves | Spotted B-75 Beast 2614 | -6/Proximity Caves | Discovered new exit (range 10) 2615 | -6/Proximity Caves | Build established: Mutant 2623 | -6/Proximity Caves | Lost 4 parts (1p2n1w) 2650 | -6/Proximity Caves | Entered Factory 2650 | -6/Factory | Accompanied by 2 allies 2650 | -6/Factory | Evolved 6 slots: Propulsion x2, Utility x4 2651 | -6/Factory | Identified exit to Extension 2757 | -6/Factory | Zion Light squad teleported in 2891 | -6/Factory | Garrison activated, responded to threat 2916 | -6/Factory | Discovered new exit (range 18) 3063 | -6/Factory | Build established: Sprinter 3220 | -6/Factory | Retrieved Zion intel report: Prototype Schematics 3252 | -6/Factory | Retrieved Zion intel report: Guard Positions 3289 | -6/Factory | Retrieved Zion intel report: Prototype Stockpiles 3290 | -6/Factory | Zion Demo squad teleported in 3370 | -6/Factory | Retrieved Zion intel report: Branch Access 3370 | -6/Factory | Identified exit to Lower Caves 3452 | -6/Factory | Entered Lower Caves 3452 | -6/Lower Caves | Accompanied by 2 allies 3542 | -6/Lower Caves | Lost 3 parts (1n1u1w) 3639 | -6/Lower Caves | Discovered new exit (range 93) 3686 | -6/Lower Caves | Attacked by a delusional Derelict stockpiling Unaware 3748 | -6/Lower Caves | Learned Factory garrison access intel 3766 | -6/Lower Caves | Identified exit to Lower Caves 3856 | -6/Lower Caves | Entered another Lower Caves area 3856 | -6/Lower Caves | Accompanied by 5 allies 3862 | -6/Lower Caves | Discovered new exit (range 14) 3883 | -6/Lower Caves | Identified exit to Factory 4098 | -6/Lower Caves | Build established: Hacker-Mutant 4208 | -6/Lower Caves | Spotted B-75 Beast 4255 | -6/Lower Caves | Found Prototype Protection 4255 | -6/Lower Caves | Identified Zio. Weapon Casing 4455 | -6/Lower Caves | Discovered new exit (range 15) 4461 | -6/Lower Caves | Identified exit to Data Miner 4568 | -6/Lower Caves | Entered Data Miner 4568 | -6/Data Miner | Accompanied by 4 allies 4568 | -6/Data Miner | Discovered new exit (range 6) 4570 | -6/Data Miner | Identified exit to Proximity Caves 4576 | -6/Data Miner | Met Data Miner 4583 | -6/Data Miner | Learned location of Section 7 (-2) 4583 | -6/Data Miner | Acquired the access code to Warlord's prototype stash 4589 | -6/Data Miner | Received God Mode back door access code from Data Miner 4785 | -6/Data Miner | Build established: Hacker-Sprinter 4846 | -6/Data Miner | Entered Proximity Caves 4846 | -5/Proximity Caves | Accompanied by 4 allies 4997 | -5/Proximity Caves | Acquired the password to a Derelict Tinkerer's latest research 5001 | -5/Proximity Caves | Found Prototype Special Weapon 5001 | -5/Proximity Caves | Identified Molecular Deconstructor 5196 | -5/Proximity Caves | Spotted B-75 Beast 5237 | -5/Proximity Caves | Escorted by Enhanced Grunt 5239 | -5/Proximity Caves | Core integrity fell below 50% 5252 | -5/Proximity Caves | Discovered exit to Factory (range 9) 5353 | -5/Proximity Caves | Entered Factory 5353 | -5/Factory | Accompanied by 5 allies 5353 | -5/Factory | Evolved 2 slots: Utility x2 5354 | -5/Factory | Loaded intel: 4 garrison access locations 5389 | -5/Factory | Zion Heavy squad teleported in 5394 | -5/Factory | Retrieved Zion intel report: Guard Positions 5399 | -5/Factory | Retrieved Zion intel report: Branch Access 5399 | -5/Factory | Identified exit to Upper Caves 5478 | -5/Factory | Fabricated Shock Maul (x1) 5653 | -5/Factory | First assault squad dispatched 5684 | -5/Factory | Build established: Hacker-Mutant 5690 | -5/Factory | Fabricated Cld. Nuclear Pulse Thruster (x1) 5717 | -5/Factory | Assembled infested ambush trap array 5825 | -5/Factory | Core integrity fell below 50% 5829 | -5/Factory | Lost 5 allies 5851 | -5/Factory | Lost 10 parts (3p3n3u1w) 5949 | -5/Factory | Retrieved Zion intel report: Unaware Analyses 5950 | -5/Factory | Zion Fire squad teleported in 5965 | -5/Factory | Lost 7 parts (1p4u2w) 5969 | -5/Factory | Incoming assault squad redirected 6230 | -5/Factory | Build established: Mutant 6312 | -5/Factory | P-70 Sage assimilated allied Y1-03I(i) 6320 | -5/Factory | Core integrity fell below 20% 6410 | -5/Factory | Entered Upper Caves 6473 | -5/Upper Caves | Attracted the attention of an 0b10 base 6498 | -5/Upper Caves | Discovered new exit (range 9) 6500 | -5/Upper Caves | Identified exit to Upper Caves 6501 | -5/Upper Caves | Entered another Upper Caves area 6519 | -5/Upper Caves | Discovered new exit (range 14) 6523 | -5/Upper Caves | Identified exit to Factory 6599 | -5/Upper Caves | Attracted the attention of an 0b10 base 6620 | -5/Upper Caves | Destroyed by S-27 Virus with Autogun Last Messages --------------- 06548_ Acquired 16 matter. 06548_ Acquired Mak. Hammer. 06550_ Acquired 1 matter. 06550_ Dropped Adv. Shield Generator. 06551_ Acquired Mak. Light Armor Plating. 06555_ Z1K=RF5WQ4M WDS3NZOGP7,Q0T